[Event "*** Titled Tuesday Blitz"]
[Site "Chess.com"]
[Date "2021.03.30"]
[Round "8"]
[White "Sofiia_Hryzlova"]
[Black "kikydu96"]
[Result "1/2-1/2"]
[WhiteElo "2329"]
[BlackElo "2476"]
[TimeControl "180+1"]
[EndTime "11:29:48 PDT"]
[Termination "Game drawn by repetition"]

1. c4 {[%clk 0:03:00.9]} 1... e5 {[%clk 0:02:59.4]} 2. g3 {[%clk 0:02:59.9]}
2... Nc6 {[%clk 0:02:59.4]} 3. Bg2 {[%clk 0:02:59.6]} 3... Bc5 {[%clk
0:02:59.2]} 4. Nc3 {[%clk 0:02:53.3]} 4... a6 {[%clk 0:02:59]} 5. e4 {[%clk
0:02:50.3]} 5... h5 {[%clk 0:02:52.6]} 6. h3 {[%clk 0:02:47.5]} 6... h4 {[%clk
0:02:48.8]} 7. g4 {[%clk 0:02:45.5]} 7... Nge7 {[%clk 0:02:49.2]} 8. d3 {[%clk
0:02:44.3]} 8... Ng6 {[%clk 0:02:48.2]} 9. Nd5 {[%clk 0:02:37.6]} 9... d6 {[%clk
0:02:46.4]} 10. Nf3 {[%clk 0:02:36.7]} 10... Be6 {[%clk 0:02:44.4]} 11. Be3
{[%clk 0:02:28.9]} 11... Nd4 {[%clk 0:02:40]} 12. b4 {[%clk 0:02:23.9]} 12...
Ba7 {[%clk 0:02:37.9]} 13. Bxd4 {[%clk 0:02:08.4]} 13... exd4 {[%clk 0:02:29]}
14. Qd2 {[%clk 0:02:07.1]} 14... c6 {[%clk 0:02:07.5]} 15. Nf4 {[%clk
0:02:02.2]} 15... Ne5 {[%clk 0:02:08.1]} 16. Nxe6 {[%clk 0:01:44.6]} 16... fxe6
{[%clk 0:02:06.4]} 17. O-O {[%clk 0:01:32.8]} 17... Qf6 {[%clk 0:02:01.4]} 18.
Ng5 {[%clk 0:01:29.3]} 18... Nxd3 {[%clk 0:01:46.7]} 19. Nxe6 {[%clk 0:01:25.6]}
19... Ne5 {[%clk 0:01:25.6]} 20. Nc7+ {[%clk 0:01:19.6]} 20... Kd7 {[%clk
0:01:25.4]} 21. Nxa8 {[%clk 0:01:16.9]} 21... Nxc4 {[%clk 0:01:24.8]} 22. Qc1
{[%clk 0:01:01.4]} 22... Ne5 {[%clk 0:01:16.6]} 23. f4 {[%clk 0:00:59.7]} 23...
d3+ {[%clk 0:01:11]} 24. Kh2 {[%clk 0:00:57.9]} 24... Ng6 {[%clk 0:00:58.8]} 25.
b5 {[%clk 0:00:37.8]} 25... axb5 {[%clk 0:00:52.8]} 26. a4 {[%clk 0:00:35.8]}
26... b4 {[%clk 0:00:52.3]} 27. Rb1 {[%clk 0:00:27.8]} 27... Qd4 {[%clk
0:00:24.8]} 28. f5 {[%clk 0:00:17.8]} 28... d2 {[%clk 0:00:17.7]} 29. Qb2 {[%clk
0:00:14.5]} 29... Ne5 {[%clk 0:00:16.1]} 30. Qxd4 {[%clk 0:00:13]} 30... Bxd4
{[%clk 0:00:17]} 31. Rxb4 {[%clk 0:00:12.7]} 31... c5 {[%clk 0:00:09.3]} 32.
Rxb7+ {[%clk 0:00:12.4]} 32... Kc8 {[%clk 0:00:09.2]} 33. Rxg7 {[%clk 0:00:12]}
33... c4 {[%clk 0:00:08.2]} 34. Rd1 {[%clk 0:00:09.9]} 34... c3 {[%clk
0:00:08.4]} 35. f6 {[%clk 0:00:06.5]} 35... c2 {[%clk 0:00:08.1]} 36. Rxd2
{[%clk 0:00:05.4]} 36... c1=Q {[%clk 0:00:08.2]} 37. Rxd4 {[%clk 0:00:05.9]}
37... Qb2 {[%clk 0:00:04.8]} 38. Rd1 {[%clk 0:00:04.8]} 38... Nf3+ {[%clk
0:00:04.9]} 39. Kh1 {[%clk 0:00:05.2]} 39... Qxf6 {[%clk 0:00:05.2]} 40. Rc7+
{[%clk 0:00:04.2]} 40... Kd8 {[%clk 0:00:05.2]} 41. e5 {[%clk 0:00:03.4]} 41...
Qf4 {[%clk 0:00:04.9]} 42. Rxd6+ {[%clk 0:00:03.3]} 42... Ke8 {[%clk 0:00:04.6]}
43. Re6+ {[%clk 0:00:03.8]} 43... Kf8 {[%clk 0:00:03.8]} 44. Rf6+ {[%clk
0:00:03.8]} 44... Qxf6 {[%clk 0:00:03.9]} 45. exf6 {[%clk 0:00:04.7]} 45... Rh7
{[%clk 0:00:01.4]} 46. Rc8+ {[%clk 0:00:05.6]} 46... Kf7 {[%clk 0:00:01.7]} 47.
Bxf3 {[%clk 0:00:05.9]} 47... Kg6 {[%clk 0:00:02.6]} 48. Rc6 {[%clk 0:00:06]}
48... Rf7 {[%clk 0:00:03.5]} 49. Be4+ {[%clk 0:00:06.4]} 49... Kg5 {[%clk
0:00:03.9]} 50. Bf5 {[%clk 0:00:07.3]} 50... Rxf6 {[%clk 0:00:04.8]} 51. Rc8
{[%clk 0:00:07.6]} 51... Rd6 {[%clk 0:00:04.7]} 52. Nb6 {[%clk 0:00:07.5]} 52...
Kf4 {[%clk 0:00:05.6]} 53. a5 {[%clk 0:00:08]} 53... Kg3 {[%clk 0:00:06.1]} 54.
Rc1 {[%clk 0:00:06.7]} 54... Rd2 {[%clk 0:00:06.4]} 55. Rg1+ {[%clk 0:00:07.6]}
55... Kxh3 {[%clk 0:00:06.6]} 56. Rf1 {[%clk 0:00:07.5]} 56... Rh2+ {[%clk
0:00:06.5]} 57. Kg1 {[%clk 0:00:07.8]} 57... Rg2+ {[%clk 0:00:07.4]} 58. Kh1
{[%clk 0:00:08.4]} 58... Rh2+ {[%clk 0:00:08.3]} 59. Kg1 {[%clk 0:00:08.3]}
59... Rg2+ {[%clk 0:00:09.2]} 60. Kh1 {[%clk 0:00:08.6]} 60... Rh2+ {[%clk
0:00:10.1]} 1/2-1/2

[Event "*** Titled Tuesday Blitz"]
[Site "Chess.com"]
[Date "2021.03.30"]
[Round "8"]
[White "BJthechessgod"]
[Black "davidkalashian"]
[Result "0-1"]
[WhiteElo "2332"]
[BlackElo "2546"]
[TimeControl "180+1"]
[EndTime "11:29:49 PDT"]
[Termination "davidkalashian won by resignation"]

1. e4 {[%clk 0:02:09.7]} 1... c6 {[%clk 0:02:58.2]} 2. d4 {[%clk 0:02:09.4]}
2... g6 {[%clk 0:02:59.1]} 3. Nc3 {[%clk 0:02:10.3]} 3... Bg7 {[%clk 0:02:58.8]}
4. Nf3 {[%clk 0:02:10.9]} 4... d6 {[%clk 0:02:59.1]} 5. Bd3 {[%clk 0:02:10.5]}
5... Nf6 {[%clk 0:02:57.6]} 6. a4 {[%clk 0:02:10.9]} 6... O-O {[%clk 0:02:57.9]}
7. O-O {[%clk 0:02:08.1]} 7... Nbd7 {[%clk 0:02:57.7]} 8. h3 {[%clk 0:02:07.8]}
8... e5 {[%clk 0:02:57]} 9. dxe5 {[%clk 0:02:07.6]} 9... dxe5 {[%clk 0:02:56.9]}
10. Be3 {[%clk 0:02:07.6]} 10... Qe7 {[%clk 0:02:56.9]} 11. Bc4 {[%clk
0:01:58.4]} 11... Nc5 {[%clk 0:02:56.5]} 12. Nd2 {[%clk 0:01:56.1]} 12... Rd8
{[%clk 0:02:54.3]} 13. Qe2 {[%clk 0:01:51.5]} 13... Ne6 {[%clk 0:02:52.5]} 14.
Rad1 {[%clk 0:01:50.4]} 14... Nd4 {[%clk 0:02:50.4]} 15. Bxd4 {[%clk 0:01:40.8]}
15... exd4 {[%clk 0:02:50.4]} 16. Ncb1 {[%clk 0:01:39.3]} 16... Nh5 {[%clk
0:02:43.1]} 17. Qf3 {[%clk 0:01:32.3]} 17... Be6 {[%clk 0:02:37.1]} 18. Bxe6
{[%clk 0:01:26.6]} 18... fxe6 {[%clk 0:02:34]} 19. g3 {[%clk 0:01:24.7]} 19...
e5 {[%clk 0:02:22.5]} 20. Na3 {[%clk 0:01:12.5]} 20... Kh8 {[%clk 0:02:19.1]}
21. Kh2 {[%clk 0:00:42.9]} 21... b6 {[%clk 0:02:10.5]} 22. h4 {[%clk 0:00:36.8]}
22... a6 {[%clk 0:02:09.3]} 23. Nac4 {[%clk 0:00:28.1]} 23... b5 {[%clk
0:02:04.7]} 24. Nb6 {[%clk 0:00:28.4]} 24... Rab8 {[%clk 0:02:02.3]} 25. a5
{[%clk 0:00:29.3]} 25... Qe6 {[%clk 0:01:45.8]} 26. Qb3 {[%clk 0:00:24]} 26...
Qg4 {[%clk 0:01:39.9]} 27. Qf3 {[%clk 0:00:24.1]} 27... Qe6 {[%clk 0:01:33.4]}
28. Qb3 {[%clk 0:00:24.3]} 28... Qe7 {[%clk 0:01:33]} 29. Nf3 {[%clk 0:00:23.6]}
29... Rf8 {[%clk 0:01:28.4]} 30. Ng5 {[%clk 0:00:24]} 30... Rbe8 {[%clk
0:01:27.1]} 31. f3 {[%clk 0:00:11.3]} 31... Bh6 {[%clk 0:01:18.1]} 32. Nh3
{[%clk 0:00:11.7]} 32... Be3 {[%clk 0:01:17.2]} 33. c3 {[%clk 0:00:07.9]} 33...
Rf6 {[%clk 0:01:00.6]} 34. cxd4 {[%clk 0:00:08.3]} 34... exd4 {[%clk 0:01:00.6]}
35. Qc2 {[%clk 0:00:05.5]} 35... Ref8 {[%clk 0:00:59.7]} 36. Qg2 {[%clk
0:00:05.4]} 36... R6f7 {[%clk 0:00:51.5]} 37. f4 {[%clk 0:00:05.2]} 37... Nf6
{[%clk 0:00:47.6]} 38. Ng5 {[%clk 0:00:04.9]} 38... Ng4+ {[%clk 0:00:46.6]} 39.
Kh3 {[%clk 0:00:03.5]} 39... h5 {[%clk 0:00:42.4]} 40. Nxf7+ {[%clk 0:00:03.1]}
40... Qxf7 {[%clk 0:00:41.7]} 41. f5 {[%clk 0:00:03.1]} 41... Qe7 {[%clk
0:00:27.9]} 42. fxg6 {[%clk 0:00:03.1]} 42... Nf2+ {[%clk 0:00:21.1]} 43. Kh2
{[%clk 0:00:03]} 43... Nxd1 {[%clk 0:00:20.7]} 44. Rxf8+ {[%clk 0:00:01.3]}
44... Qxf8 {[%clk 0:00:20.3]} 45. e5 {[%clk 0:00:01.7]} 45... Nf2 {[%clk
0:00:19.5]} 46. Qxc6 {[%clk 0:00:02]} 46... Ng4+ {[%clk 0:00:20.2]} 47. Kh3
{[%clk 0:00:02.2]} 47... Qf1+ {[%clk 0:00:19.1]} 48. Qg2 {[%clk 0:00:02.7]}
48... Qxg2+ {[%clk 0:00:16.9]} 49. Kxg2 {[%clk 0:00:02.7]} 49... Nxe5 {[%clk
0:00:17.8]} 50. Nd5 {[%clk 0:00:02.2]} 50... Nxg6 {[%clk 0:00:16]} 51. Nc7
{[%clk 0:00:02.7]} 51... Bd2 {[%clk 0:00:16.3]} 52. Nxa6 {[%clk 0:00:02.5]}
52... Bxa5 {[%clk 0:00:17.2]} 53. Nc5 {[%clk 0:00:03]} 53... Ne5 {[%clk
0:00:16.7]} 54. Kf2 {[%clk 0:00:03]} 54... Bb6 {[%clk 0:00:15.3]} 55. Ne4 {[%clk
0:00:01.5]} 55... Nd3+ {[%clk 0:00:15.3]} 56. Ke2 {[%clk 0:00:01.7]} 56... Nxb2
{[%clk 0:00:16.2]} 57. Nf6 {[%clk 0:00:01.9]} 57... d3+ {[%clk 0:00:16.1]} 58.
Kd2 {[%clk 0:00:02.5]} 58... Ba5+ {[%clk 0:00:16.6]} 59. Kc1 {[%clk 0:00:02.1]}
59... d2+ {[%clk 0:00:16.2]} 60. Kxb2 {[%clk 0:00:03]} 60... d1=Q {[%clk
0:00:15.7]} 61. Nxh5 {[%clk 0:00:03.9]} 0-1

[Event "*** Titled Tuesday Blitz"]
[Site "Chess.com"]
[Date "2021.03.30"]
[Round "8"]
[White "Fortitudine"]
[Black "retropwr"]
[Result "1-0"]
[WhiteElo "2288"]
[BlackElo "2423"]
[TimeControl "180+1"]
[EndTime "11:29:50 PDT"]
[Termination "Fortitudine won by checkmate"]

1. c4 {[%clk 0:03:00.9]} 1... d6 {[%clk 0:03:00.9]} 2. g3 {[%clk 0:02:57]} 2...
e5 {[%clk 0:03:01.8]} 3. Bg2 {[%clk 0:02:56.7]} 3... f5 {[%clk 0:03:02.3]} 4.
Nc3 {[%clk 0:02:56.6]} 4... Nf6 {[%clk 0:03:02.6]} 5. d3 {[%clk 0:02:51.1]} 5...
g6 {[%clk 0:03:01.9]} 6. e4 {[%clk 0:02:42.3]} 6... c6 {[%clk 0:02:59.6]} 7.
Nge2 {[%clk 0:02:41.6]} 7... Bg7 {[%clk 0:02:59.3]} 8. O-O {[%clk 0:02:40.5]}
8... Be6 {[%clk 0:02:59.4]} 9. b3 {[%clk 0:02:40]} 9... Nbd7 {[%clk 0:02:59]}
10. d4 {[%clk 0:02:38.6]} 10... O-O {[%clk 0:02:50.3]} 11. Ba3 {[%clk
0:02:14.4]} 11... c5 {[%clk 0:02:36.6]} 12. dxe5 {[%clk 0:02:05]} 12... Nxe5
{[%clk 0:02:25.7]} 13. exf5 {[%clk 0:02:03]} 13... Bxf5 {[%clk 0:02:19.4]} 14.
Bxb7 {[%clk 0:01:27.6]} 14... Bh3 {[%clk 0:01:57.9]} 15. Bg2 {[%clk 0:01:22.6]}
15... Qd7 {[%clk 0:01:53.5]} 16. Nf4 {[%clk 0:01:18.2]} 16... Bxg2 {[%clk
0:01:51.8]} 17. Kxg2 {[%clk 0:01:18.1]} 17... Nc6 {[%clk 0:01:32.4]} 18. Bb2
{[%clk 0:01:06.7]} 18... Ng4 {[%clk 0:01:25]} 19. Qd5+ {[%clk 0:01:02]} 19...
Kh8 {[%clk 0:01:23.6]} 20. Qe6 {[%clk 0:00:55.8]} 20... Qb7 {[%clk 0:01:18.1]}
21. Nfd5 {[%clk 0:00:47.3]} 21... Nh6 {[%clk 0:01:04.4]} 22. Qxd6 {[%clk
0:00:46.3]} 22... Rad8 {[%clk 0:01:01.1]} 23. Qc7 {[%clk 0:00:45.6]} 23... Qa8
{[%clk 0:00:55.4]} 24. Rad1 {[%clk 0:00:40.7]} 24... Nd4 {[%clk 0:00:54.1]} 25.
f4 {[%clk 0:00:36]} 25... Nhf5 {[%clk 0:00:52.8]} 26. Rfe1 {[%clk 0:00:33.8]}
26... h5 {[%clk 0:00:45.4]} 27. Qxc5 {[%clk 0:00:31.3]} 27... Rfe8 {[%clk
0:00:42]} 28. Ne4 {[%clk 0:00:25.5]} 28... Ne6 {[%clk 0:00:35.7]} 29. Bxg7+
{[%clk 0:00:24.7]} 29... Nexg7 {[%clk 0:00:34.7]} 30. Qf2 {[%clk 0:00:21.4]}
30... a5 {[%clk 0:00:31]} 31. Qf3 {[%clk 0:00:20.4]} 31... a4 {[%clk 0:00:30.3]}
32. Nef6 {[%clk 0:00:19.4]} 32... Rxe1 {[%clk 0:00:27.4]} 33. Rxe1 {[%clk
0:00:20.3]} 33... axb3 {[%clk 0:00:27.8]} 34. axb3 {[%clk 0:00:21.2]} 34... Rb8
{[%clk 0:00:13.4]} 35. b4 {[%clk 0:00:19.4]} 35... Qa2+ {[%clk 0:00:12.2]} 36.
Re2 {[%clk 0:00:18.5]} 36... Qxc4 {[%clk 0:00:12.3]} 37. Ne7 {[%clk 0:00:13]}
37... Nxe7 {[%clk 0:00:09.8]} 38. Rxe7 {[%clk 0:00:13.9]} 38... Qxb4 {[%clk
0:00:10]} 39. Qe2 {[%clk 0:00:10.8]} 39... Qb2 {[%clk 0:00:08.9]} 40. Qxb2
{[%clk 0:00:09.8]} 40... Rxb2+ {[%clk 0:00:09.8]} 41. Kg1 {[%clk 0:00:09.9]}
41... Rb1+ {[%clk 0:00:09.4]} 42. Kg2 {[%clk 0:00:10]} 42... Rb2+ {[%clk
0:00:09.7]} 43. Kh3 {[%clk 0:00:10.5]} 43... Rc2 {[%clk 0:00:04.4]} 44. Rf7
{[%clk 0:00:08.2]} 44... Rc8 {[%clk 0:00:03.6]} 45. Kg2 {[%clk 0:00:06.4]} 45...
Ra8 {[%clk 0:00:03.7]} 46. h3 {[%clk 0:00:06.4]} 46... Ra2+ {[%clk 0:00:03.4]}
47. Kg1 {[%clk 0:00:06.7]} 47... Ra3 {[%clk 0:00:04]} 48. Kf2 {[%clk 0:00:06.5]}
48... Ra2+ {[%clk 0:00:03.8]} 49. Kf3 {[%clk 0:00:07]} 49... Ra8 {[%clk
0:00:04.6]} 50. g4 {[%clk 0:00:06.8]} 50... hxg4+ {[%clk 0:00:04]} 51. hxg4
{[%clk 0:00:07.7]} 51... Ra3+ {[%clk 0:00:03.9]} 52. Kg2 {[%clk 0:00:07.7]}
52... Ra8 {[%clk 0:00:04.4]} 53. Kg3 {[%clk 0:00:07.9]} 53... Ra3+ {[%clk
0:00:03.3]} 54. Kh4 {[%clk 0:00:08]} 54... Ra8 {[%clk 0:00:04.2]} 55. Re7 {[%clk
0:00:06.7]} 55... Rb8 {[%clk 0:00:04.1]} 56. Kg5 {[%clk 0:00:05.4]} 56... Rf8
{[%clk 0:00:03.2]} 57. Kxg6 {[%clk 0:00:05.5]} 57... Ne8 {[%clk 0:00:02.6]} 58.
Rh7# {[%clk 0:00:06.4]} 1-0

[Event "*** Titled Tuesday Blitz"]
[Site "Chess.com"]
[Date "2021.03.30"]
[Round "8"]
[White "Evgeny81"]
[Black "iamnotIM"]
[Result "1-0"]
[WhiteElo "2774"]
[BlackElo "2614"]
[TimeControl "180+1"]
[EndTime "11:29:56 PDT"]
[Termination "Evgeny81 won by resignation"]

1. e4 {[%clk 0:03:00.9]} 1... c5 {[%clk 0:02:59.7]} 2. Nf3 {[%clk 0:03:00.6]}
2... d6 {[%clk 0:02:59.8]} 3. d4 {[%clk 0:03:00.6]} 3... cxd4 {[%clk 0:03:00.7]}
4. Nxd4 {[%clk 0:03:01.4]} 4... Nf6 {[%clk 0:03:01.4]} 5. Nc3 {[%clk 0:03:01.9]}
5... g6 {[%clk 0:03:01.9]} 6. Be2 {[%clk 0:02:59.1]} 6... Bg7 {[%clk 0:03:00.7]}
7. O-O {[%clk 0:02:59.4]} 7... O-O {[%clk 0:03:00.8]} 8. Re1 {[%clk 0:02:59.5]}
8... Nc6 {[%clk 0:03:01.2]} 9. Bf1 {[%clk 0:02:58.2]} 9... Bg4 {[%clk
0:02:41.8]} 10. Qd3 {[%clk 0:02:56.8]} 10... Nxd4 {[%clk 0:02:32.7]} 11. Qxd4
{[%clk 0:02:56.8]} 11... Qa5 {[%clk 0:02:21.1]} 12. h3 {[%clk 0:02:47.4]} 12...
Be6 {[%clk 0:02:20.4]} 13. Qa4 {[%clk 0:02:42.2]} 13... Qxa4 {[%clk 0:02:15.6]}
14. Nxa4 {[%clk 0:02:43.1]} 14... Rfc8 {[%clk 0:02:14.7]} 15. Nc3 {[%clk
0:02:42.3]} 15... Rxc3 {[%clk 0:02:03.4]} 16. bxc3 {[%clk 0:02:41.9]} 16... Rc8
{[%clk 0:02:04.1]} 17. Bd2 {[%clk 0:02:29.9]} 17... Nd7 {[%clk 0:02:01.5]} 18.
a4 {[%clk 0:02:20.7]} 18... Ne5 {[%clk 0:01:36.8]} 19. Reb1 {[%clk 0:02:15.9]}
19... Rc7 {[%clk 0:01:29.6]} 20. a5 {[%clk 0:02:11.6]} 20... Nc4 {[%clk
0:01:27.8]} 21. Bxc4 {[%clk 0:02:09.5]} 21... Bxc4 {[%clk 0:01:28.7]} 22. Ra3
{[%clk 0:02:05.4]} 22... Ba6 {[%clk 0:01:23.4]} 23. Be3 {[%clk 0:02:00.2]} 23...
Rc4 {[%clk 0:01:08.6]} 24. f3 {[%clk 0:01:53]} 24... Rxc3 {[%clk 0:01:04.3]} 25.
Rxc3 {[%clk 0:01:51.4]} 25... Bxc3 {[%clk 0:01:05.2]} 26. Bxa7 {[%clk
0:01:50.4]} 26... Bxa5 {[%clk 0:01:04.1]} 27. Bd4 {[%clk 0:01:46.8]} 27... f6
{[%clk 0:01:02.4]} 28. Kf2 {[%clk 0:01:42.3]} 28... Kf7 {[%clk 0:01:01.9]} 29.
Ra1 {[%clk 0:01:41.4]} 29... Bc7 {[%clk 0:00:55.1]} 30. Ra3 {[%clk 0:01:40.8]}
30... Ke6 {[%clk 0:00:52.7]} 31. Rc3 {[%clk 0:01:39.5]} 31... Kd7 {[%clk
0:00:53.1]} 32. Be3 {[%clk 0:01:39.2]} 32... Ba5 {[%clk 0:00:46.5]} 33. Rb3
{[%clk 0:01:39.1]} 33... Bc7 {[%clk 0:00:44]} 34. Bb6 {[%clk 0:01:36.8]} 34...
Bb8 {[%clk 0:00:40.1]} 35. Rc3 {[%clk 0:01:35.6]} 35... e6 {[%clk 0:00:37.5]}
36. h4 {[%clk 0:01:34.1]} 36... d5 {[%clk 0:00:36.6]} 37. exd5 {[%clk
0:01:33.6]} 37... exd5 {[%clk 0:00:37.5]} 38. Bd4 {[%clk 0:01:32.1]} 38... f5
{[%clk 0:00:35.3]} 39. Re3 {[%clk 0:01:23.2]} 39... Bf4 {[%clk 0:00:32]} 40. Re1
{[%clk 0:01:22.7]} 40... Bd6 {[%clk 0:00:27.6]} 41. g4 {[%clk 0:01:18.7]} 41...
fxg4 {[%clk 0:00:23.8]} 42. fxg4 {[%clk 0:01:19.6]} 42... h5 {[%clk 0:00:21.3]}
43. g5 {[%clk 0:00:59.3]} 43... Bb5 {[%clk 0:00:21.1]} 44. Kf3 {[%clk
0:00:56.3]} 44... Ba4 {[%clk 0:00:19.9]} 45. Re2 {[%clk 0:00:52]} 45... b5
{[%clk 0:00:15.6]} 46. Rf2 {[%clk 0:00:47.8]} 46... b4 {[%clk 0:00:15.2]} 47.
Ke3 {[%clk 0:00:47.8]} 47... b3 {[%clk 0:00:13.7]} 48. cxb3 {[%clk 0:00:44.3]}
48... Bxb3 {[%clk 0:00:14.6]} 49. Rf7+ {[%clk 0:00:44.1]} 49... Ke8 {[%clk
0:00:12.6]} 50. Rf6 {[%clk 0:00:44.3]} 50... Bg3 {[%clk 0:00:12.9]} 51. Rxg6
{[%clk 0:00:42.4]} 51... Bxh4 {[%clk 0:00:13.3]} 52. Kf4 {[%clk 0:00:41.6]}
52... Bd1 {[%clk 0:00:10.8]} 53. Re6+ {[%clk 0:00:37.1]} 53... Kf7 {[%clk
0:00:10.8]} 54. Rf6+ {[%clk 0:00:36.2]} 54... Kg8 {[%clk 0:00:11.3]} 55. Rd6
{[%clk 0:00:33.9]} 55... Be1 {[%clk 0:00:09.1]} 56. Kf5 {[%clk 0:00:32.6]} 56...
h4 {[%clk 0:00:07]} 57. g6 {[%clk 0:00:29.1]} 57... Kf8 {[%clk 0:00:03.4]} 58.
g7+ {[%clk 0:00:26]} 58... Kf7 {[%clk 0:00:02.7]} 59. Rd7+ {[%clk 0:00:26]}
59... Ke8 {[%clk 0:00:02.2]} 60. g8=Q+ {[%clk 0:00:25.7]} 60... Kxd7 {[%clk
0:00:02.7]} 61. Qe6+ {[%clk 0:00:25.7]} 61... Kc7 {[%clk 0:00:02.5]} 62. Qxe1
{[%clk 0:00:26.6]} 62... Bc2+ {[%clk 0:00:01.9]} 63. Ke5 {[%clk 0:00:26]} 63...
Be4 {[%clk 0:00:02.8]} 64. Qxh4 {[%clk 0:00:25.6]} 1-0

[Event "*** Titled Tuesday Blitz"]
[Site "Chess.com"]
[Date "2021.03.30"]
[Round "8"]
[White "GMKrikor"]
[Black "Leonid_Starozhilov"]
[Result "1/2-1/2"]
[WhiteElo "2839"]
[BlackElo "2731"]
[TimeControl "180+1"]
[EndTime "11:30:02 PDT"]
[Termination "Game drawn by repetition"]

1. e4 {[%clk 0:03:00.9]} 1... g6 {[%clk 0:03:00]} 2. d4 {[%clk 0:03:00.4]} 2...
Bg7 {[%clk 0:03:00.9]} 3. Nc3 {[%clk 0:03:00.9]} 3... d6 {[%clk 0:03:01.4]} 4.
Be3 {[%clk 0:02:59.9]} 4... a6 {[%clk 0:03:01.5]} 5. h4 {[%clk 0:02:59.7]} 5...
h5 {[%clk 0:03:00.5]} 6. f3 {[%clk 0:02:59]} 6... b5 {[%clk 0:02:59.8]} 7. Qd2
{[%clk 0:02:59.7]} 7... Nd7 {[%clk 0:02:59.6]} 8. Nh3 {[%clk 0:02:59.5]} 8...
Ngf6 {[%clk 0:02:59.3]} 9. Ng5 {[%clk 0:02:58.7]} 9... Nh7 {[%clk 0:02:59.6]}
10. Nxh7 {[%clk 0:02:30.4]} 10... Rxh7 {[%clk 0:03:00.5]} 11. O-O-O {[%clk
0:02:30.6]} 11... Nb6 {[%clk 0:03:00.2]} 12. Kb1 {[%clk 0:02:30.3]} 12... Bb7
{[%clk 0:02:59]} 13. Bd3 {[%clk 0:02:24]} 13... c6 {[%clk 0:02:58]} 14. Qf2
{[%clk 0:02:22.9]} 14... Qc7 {[%clk 0:02:57.1]} 15. Ne2 {[%clk 0:02:20.3]} 15...
Rc8 {[%clk 0:02:48.2]} 16. c3 {[%clk 0:02:12.6]} 16... c5 {[%clk 0:02:28]} 17.
Rc1 {[%clk 0:02:00.1]} 17... e5 {[%clk 0:01:59.7]} 18. Rhd1 {[%clk 0:01:29.9]}
18... Bh6 {[%clk 0:01:27.2]} 19. Bxh6 {[%clk 0:01:23.7]} 19... Rxh6 {[%clk
0:01:27.2]} 20. dxc5 {[%clk 0:01:12.6]} 20... dxc5 {[%clk 0:01:25.8]} 21. c4
{[%clk 0:01:13.2]} 21... b4 {[%clk 0:01:21.5]} 22. Ng3 {[%clk 0:01:13.5]} 22...
Rh8 {[%clk 0:01:16.2]} 23. Nf1 {[%clk 0:01:13.7]} 23... Rd8 {[%clk 0:01:13.1]}
24. Ne3 {[%clk 0:01:13.3]} 24... Rd4 {[%clk 0:01:13]} 25. Nd5 {[%clk 0:01:08.6]}
25... Qd6 {[%clk 0:01:10.5]} 26. Be2 {[%clk 0:00:57.9]} 26... Kf8 {[%clk
0:01:06]} 27. Qg3 {[%clk 0:00:48.9]} 27... Rxd1 {[%clk 0:01:01.7]} 28. Rxd1
{[%clk 0:00:48.6]} 28... Bxd5 {[%clk 0:00:59.4]} 29. exd5 {[%clk 0:00:44.9]}
29... Kg7 {[%clk 0:00:58.3]} 30. Bd3 {[%clk 0:00:45.6]} 30... Re8 {[%clk
0:00:49.1]} 31. Re1 {[%clk 0:00:45.6]} 31... Qf6 {[%clk 0:00:41.9]} 32. Qf2
{[%clk 0:00:40.8]} 32... Nd7 {[%clk 0:00:30.8]} 33. Bc2 {[%clk 0:00:41]} 33...
Re7 {[%clk 0:00:19.3]} 34. g3 {[%clk 0:00:33.8]} 34... Qd6 {[%clk 0:00:18.2]}
35. Qe3 {[%clk 0:00:31.4]} 35... Nb6 {[%clk 0:00:16.4]} 36. b3 {[%clk
0:00:28.5]} 36... a5 {[%clk 0:00:15.7]} 37. Qg5 {[%clk 0:00:27]} 37... a4 {[%clk
0:00:13.8]} 38. f4 {[%clk 0:00:25.1]} 38... axb3 {[%clk 0:00:11.6]} 39. axb3
{[%clk 0:00:23.2]} 39... Nd7 {[%clk 0:00:11.9]} 40. f5 {[%clk 0:00:20.2]} 40...
e4 {[%clk 0:00:06.9]} 41. fxg6 {[%clk 0:00:17.9]} 41... Re5 {[%clk 0:00:05.3]}
42. Qf4 {[%clk 0:00:13.5]} 42... fxg6 {[%clk 0:00:05.2]} 43. Rxe4 {[%clk
0:00:12.7]} 43... Qe7 {[%clk 0:00:05.5]} 44. Rxe5 {[%clk 0:00:11.5]} 44... Nxe5
{[%clk 0:00:05.5]} 45. Kc1 {[%clk 0:00:07.3]} 45... Qd6 {[%clk 0:00:06]} 46. Kd2
{[%clk 0:00:06.3]} 46... Qe7 {[%clk 0:00:06.6]} 47. Be4 {[%clk 0:00:05.2]} 47...
Qd6 {[%clk 0:00:06.9]} 48. Ke2 {[%clk 0:00:05]} 48... Qe7 {[%clk 0:00:06.8]} 49.
Kf1 {[%clk 0:00:05.2]} 49... Qd6 {[%clk 0:00:07]} 50. Kg2 {[%clk 0:00:05.4]}
50... Qe7 {[%clk 0:00:07.5]} 51. Bf3 {[%clk 0:00:02.8]} 51... Qd6 {[%clk
0:00:06.3]} 52. Qd2 {[%clk 0:00:03]} 52... Qe7 {[%clk 0:00:06.8]} 53. Qf2 {[%clk
0:00:03.2]} 53... Qd6 {[%clk 0:00:07]} 54. Be2 {[%clk 0:00:03.5]} 54... Nd7
{[%clk 0:00:06.5]} 55. Qf4 {[%clk 0:00:03.8]} 55... Ne5 {[%clk 0:00:07]} 56. Kf2
{[%clk 0:00:04]} 56... Qe7 {[%clk 0:00:07.3]} 57. Kg2 {[%clk 0:00:03.5]} 57...
Qd6 {[%clk 0:00:07.8]} 58. Qg5 {[%clk 0:00:03.9]} 58... Nf7 {[%clk 0:00:07.1]}
59. Qe3 {[%clk 0:00:03.4]} 59... Ne5 {[%clk 0:00:07.6]} 60. Bf3 {[%clk 0:00:04]}
60... Qe7 {[%clk 0:00:07.9]} 61. Qf4 {[%clk 0:00:03.4]} 61... Qd6 {[%clk
0:00:08.5]} 62. Be4 {[%clk 0:00:03.9]} 62... Qe7 {[%clk 0:00:08.1]} 63. Bf3
{[%clk 0:00:04.1]} 1/2-1/2